fUSD/lending_fUSD_20240708
["ID","MTS","AMOUNT","RATE_DAILY","PERIOD"]
[331464923,1720427741633,-500.0,0.00034099,35]
[331464924,1720427741712,-500.0,0.00034099,40]
[331464925,1720427741778,-593.07,0.00034099,30]
[331464926,1720427741844,-500.0,0.00034099,33]
[331464927,1720427741907,-323.4,0.00034099,50]
[331464928,1720427741967,-500.0,0.00034099,41]
[331464929,1720427742024,-500.0,0.00034099,34]
[331464930,1720427742083,-593.07,0.00034099,31]
[331464931,1720427742139,-500.0,0.00034099,36]
[331464932,1720427742197,-500.0,0.00034099,42]
[331464933,1720427742253,-500.0,0.00034099,35]
[331464934,1720427742308,-593.07,0.00034099,32]
[331464935,1720427742364,-500.0,0.00034099,37]
[331464936,1720427742419,-500.0,0.00034099,43]
[331464937,1720427743273,-500.0,0.00034099,36]
[331464938,1720427743389,-593.07,0.00034099,33]
[331464939,1720427743451,-500.0,0.00034099,38]
[331464940,1720427743502,-500.0,0.00034099,44]
[331464941,1720427743552,-500.0,0.00034099,37]
[331464942,1720427743600,-593.07,0.00034099,34]
[331464943,1720427743648,-500.0,0.00034099,30]
[331464944,1720427743696,-500.0,0.00034099,39]
[331464945,1720427743744,-591.56753773,0.00034099,45]
[331464946,1720427743798,-500.0,0.00034099,38]
[331464947,1720427743847,-500.0,0.00034099,31]
[331464948,1720427743896,-500.0,0.00034099,40]
[331464949,1720427743947,-593.07,0.00034099,35]
[331464950,1720427744000,-500.0,0.00034099,39]
[331464951,1720427744048,-500.0,0.00034099,32]
[331464952,1720427744096,-500.0,0.00034099,41]
[331464953,1720427744144,-593.07,0.00034099,36]
[331464955,1720427744188,-500.0,0.00034099,40]
[331464956,1720427744236,-500.0,0.00034099,33]
[331464957,1720427744288,-500.0,0.00034099,42]
[331464958,1720427744335,-593.07,0.00034099,37]
[331464959,1720427744384,-378.47199965,0.00034099,41]
[331464960,1720427744432,-500.0,0.00034099,43]
[331464961,1720427744480,-593.07,0.00034099,38]
[331464962,1720427744530,-558.74,0.00034099,44]
[331464963,1720427744584,-593.07,0.00034099,39]
[331464964,1720427744634,-500.0,0.00034099,34]
[331464965,1720427744683,-593.07,0.00034099,40]
[331464966,1720427744734,-500.0,0.00034099,35]
[331464967,1720427744786,-593.07,0.00034099,41]
[331464968,1720427744839,-500.0,0.00034099,36]
[331464969,1720427744889,-593.07,0.00034099,42]
[331464970,1720427744942,-500.0,0.00034099,37]
[331464971,1720427744995,-593.07,0.00034099,43]
[331464972,1720427745048,-500.0,0.00034099,38]
[331464973,1720427745099,-500.0,0.00034099,30]
[331464974,1720427745158,-593.07,0.00034099,44]
[331464975,1720427745212,-500.0,0.00034099,39]
[331464976,1720427745265,-500.0,0.00034099,30]
[331464977,1720427745317,-500.0,0.00034099,31]
[331464978,1720427745368,-2552.43,0.00034099,30]
[331464979,1720427745420,-593.07,0.00034099,45]
[331464980,1720427745472,-500.0,0.00034099,40]
[331464981,1720427745522,-500.0,0.00034099,31]
[331464982,1720427745570,-500.0,0.00034099,32]
[331464983,1720427745619,-593.07,0.00034099,46]
[331464984,1720427745668,-2552.43,0.00034099,31]
[331464985,1720427745718,-500.0,0.00034099,41]
[331464986,1720427745766,-500.0,0.00034099,32]
[331464987,1720427745815,-500.0,0.00034099,33]
[331464988,1720427745869,-593.07,0.00034099,47]
[331464989,1720427745925,-2552.43,0.00034099,32]
[331464990,1720427745975,-176.90567968,0.00034099,42]
[331464991,1720427746026,-500.0,0.00034099,34]
[331464992,1720427746079,-500.0,0.00034099,33]
[331464993,1720427746128,-593.07,0.00034099,48]
[331464994,1720427746178,-2552.43,0.00034099,33]
[331464995,1720427746226,-212.47976914,0.00034099,34]
[331464996,1720427746275,-500.0,0.00034099,35]
[331464997,1720427746332,-593.07,0.00034099,49]
[331464998,1720427746385,-2552.43,0.00034099,34]
[331464999,1720427746437,-625.53494729,0.00034099,36]
[331465000,1720427746487,-2552.43,0.00034099,35]
[331465001,1720427746545,-2552.43,0.00034099,36]
[331465002,1720427746595,-500.0,0.00034099,30]
[331465003,1720427746650,-593.07,0.00034099,50]
[331465004,1720427746702,-2552.43,0.00034099,37]
[331465005,1720427746754,-500.0,0.00034099,31]
[331465006,1720427746804,-593.07,0.00034099,51]
[331465007,1720427746855,-2552.43,0.00034099,38]
[331465008,1720427746980,-500.0,0.00034099,32]
[331465009,1720427747028,-2552.43,0.00034099,39]
[331465010,1720427747082,-500.0,0.00034099,33]
[331465011,1720427747130,-593.07,0.00034099,52]
[331465012,1720427747177,-2552.43,0.00034099,40]
[331465013,1720427747231,-500.0,0.00034099,30]
[331465014,1720427747284,-500.0,0.00034099,30]
[331465015,1720427747346,-2552.43,0.00034099,41]
[331465016,1720427747395,-500.0,0.00034099,31]
[331465017,1720427747443,-500.0,0.00034099,34]
[331465018,1720427747491,-593.12222476,0.00034099,53]
[331465019,1720427747545,-500.0,0.00034099,32]
[331465020,1720427747596,-2552.43,0.00034099,42]
[331465021,1720427747648,-500.0,0.00034099,31]
[331465022,1720427747705,-500.0,0.00034099,35]
[331465023,1720427747756,-2552.43,0.00034099,43]
[331465024,1720427747806,-500.0,0.00034099,32]
[331465025,1720427747854,-500.0,0.00034099,36]
[331465026,1720427747906,-2552.43,0.00034099,44]
[331465027,1720427747957,-500.0,0.00034099,33]
[331465028,1720427748010,-500.0,0.00034099,33]
[331465029,1720427748066,-500.0,0.00034099,37]
[331465030,1720427748122,-2552.43,0.00034099,45]
[331465031,1720427748178,-500.0,0.00034099,34]
[331465032,1720427748233,-500.0,0.00034099,34]
[331465033,1720427748288,-500.0,0.00034099,38]
[331465034,1720427748344,-2552.43,0.00034099,46]
[331465035,1720427748398,-500.0,0.00034099,35]
[331465036,1720427748449,-500.0,0.00034099,35]
[331465037,1720427748498,-500.0,0.00034099,39]
[331465038,1720427748549,-2552.43,0.00034099,47]
[331465039,1720427748598,-500.0,0.00034099,36]
[331465040,1720427748652,-500.0,0.00034099,36]
[331465041,1720427748704,-500.0,0.00034099,40]
[331465042,1720427748760,-2552.43,0.00034099,48]
[331465043,1720427748814,-465.69013475,0.00034099,37]
[331465044,1720427748873,-286.78595429,0.00034099,37]
[331465045,1720427748936,-500.0,0.00034099,41]
[331465046,1720427748990,-2552.43,0.00034099,49]
[331465047,1720427749049,-500.0,0.00034099,42]
[331465048,1720427749105,-2552.43,0.00034099,50]
[331465049,1720427749160,-586.75,0.00034099,30]
[331465050,1720427749216,-2552.43,0.00034099,51]
[331465051,1720427749270,-586.75,0.00034099,31]
[331465052,1720427749324,-2552.43,0.00034099,52]
[331465053,1720427749376,-500.0,0.00034099,43]
[331465054,1720427749430,-586.75,0.00034099,32]
[331465055,1720427749483,-2552.65216659,0.00034099,53]
[331465056,1720427749537,-460.08313089,0.00034099,44]
[331465057,1720427749589,-586.75,0.00034099,33]
[331465058,1720427749638,-586.75,0.00034099,34]
[331465059,1720427749688,-586.75,0.00034099,35]
[331465060,1720427749739,-586.75,0.00034099,36]
[331465061,1720427749792,-795.04,0.00034099,30]
[331465062,1720427749846,-586.75,0.00034099,37]
[331465063,1720427749896,-795.04,0.00034099,31]
[331465064,1720427749949,-500.0,0.00034099,30]
[331465065,1720427750003,-795.04,0.00034099,32]
[331465066,1720427750052,-586.75,0.00034099,38]
[331465067,1720427750103,-500.0,0.00034099,31]
[331465068,1720427750152,-500.0,0.00034099,32]
[331465069,1720427750201,-586.75,0.00034099,39]
[331465070,1720427750249,-795.04,0.00034099,33]
[331465071,1720427750298,-500.0,0.00034099,33]
[331465072,1720427750347,-586.75,0.00034099,40]
[331465073,1720427750396,-795.04,0.00034099,34]
[331465074,1720427750445,-586.75,0.00034099,41]
[331465075,1720427750493,-500.0,0.00034099,34]
[331465076,1720427750544,-795.04,0.00034099,35]
[331465077,1720427750593,-586.75,0.00034099,42]
[331465078,1720427750642,-500.0,0.00034099,35]
[331465079,1720427750690,-795.04,0.00034099,36]
[331465080,1720427750739,-500.0,0.00034099,36]
[331465081,1720427750787,-586.75,0.00034099,43]
[331465082,1720427750840,-795.04,0.00034099,37]
[331465083,1720427750890,-500.0,0.00034099,37]
[331465084,1720427750941,-586.75,0.00034099,44]
[331465085,1720427750995,-795.04,0.00034099,38]
[331465086,1720427751047,-500.0,0.00034099,38]
[331465087,1720427751096,-586.75,0.00034099,45]
[331465088,1720427751145,-795.04,0.00034099,39]
[331465089,1720427751194,-500.0,0.00034099,39]
[331465090,1720427751245,-586.75,0.00034099,46]
[331465091,1720427751301,-795.04,0.00034099,40]
[331465092,1720427751353,-500.0,0.00034099,40]
[331465093,1720427751403,-586.75,0.00034099,47]
[331465094,1720427751453,-593.18240251,0.00034099,41]
[331465095,1720427751501,-586.75,0.00034099,48]
[331465096,1720427751549,-795.04,0.00034099,41]
[331465097,1720427751596,-586.75,0.00034099,49]
[331465098,1720427751646,-795.04,0.00034099,42]
[331465099,1720427751697,-586.75,0.00034099,50]
[331465100,1720427751745,-795.04,0.00034099,43]
[331465101,1720427751794,-795.04,0.00034099,44]
[331465102,1720427751841,-795.04,0.00034099,45]
[331465103,1720427751887,-586.75,0.00034099,51]
[331465104,1720427751936,-795.04,0.00034099,46]
[331465105,1720427751988,-586.75,0.00034099,52]
[331465106,1720427752040,-586.82815355,0.00034099,53]
[331465107,1720427752090,-795.04,0.00034099,47]
[331465108,1720427752140,-500.0,0.00034099,30]
[331465109,1720427752186,-795.04,0.00034099,48]
[331465110,1720427752231,-500.0,0.00034099,31]
[331465111,1720427752279,-795.04,0.00034099,49]
[331465112,1720427752459,-500.0,0.00034099,32]
[331465113,1720427752514,-795.04,0.00034099,50]
[331465114,1720427752566,-500.0,0.00034099,33]
[331465115,1720427752616,-795.04,0.00034099,51]
[331465116,1720427752663,-967.69,0.00034099,30]
[331465117,1720427752710,-795.04,0.00034099,52]
[331465118,1720427752756,-500.0,0.00034099,34]
[331465119,1720427752802,-727.03,0.00034099,30]
[331465120,1720427752850,-795.23306541,0.00034099,53]
[331465121,1720427752901,-967.69,0.00034099,31]
[331465122,1720427752954,-500.0,0.00034099,35]
[331465123,1720427753006,-967.69,0.00034099,32]
[331465124,1720427753054,-227.95290132,0.00034099,36]
[331465125,1720427753105,-727.03,0.00034099,31]
[331465126,1720427753155,-967.69,0.00034099,33]
[331465127,1720427753207,-727.03,0.00034099,32]
[331465128,1720427753257,-967.69,0.00034099,34]
[331465129,1720427753306,-727.03,0.00034099,33]
[331465130,1720427753354,-967.69,0.00034099,35]
[331465131,1720427753400,-727.03,0.00034099,34]
[331465132,1720427753447,-727.03,0.00034099,35]
[331465133,1720427753492,-967.69,0.00034099,36]
[331465134,1720427753544,-727.03,0.00034099,36]
[331465135,1720427753597,-727.03,0.00034099,37]
[331465136,1720427753652,-967.69,0.00034099,37]
[331465137,1720427753705,-727.03,0.00034099,38]
[331465138,1720427753761,-967.69,0.00034099,38]
[331465139,1720427753812,-594.57,0.00034099,30]
[331465140,1720427753864,-727.03,0.00034099,39]
[331465141,1720427753920,-967.69,0.00034099,39]
[331465142,1720427753971,-594.57,0.00034099,31]
[331465143,1720427754024,-727.03,0.00034099,40]
[331465144,1720427754084,-594.57,0.00034099,32]
[331465145,1720427754133,-967.69,0.00034099,40]
[331465146,1720427754184,-727.03,0.00034099,41]
[331465147,1720427754234,-594.57,0.00034099,33]
[331465148,1720427754282,-967.69,0.00034099,41]
[331465149,1720427754334,-727.03,0.00034099,42]
[331465150,1720427754381,-594.57,0.00034099,34]
[331465151,1720427754431,-967.69,0.00034099,42]
[331465152,1720427754479,-727.03,0.00034099,43]
[331465153,1720427754528,-967.69,0.00034099,43]
[331465154,1720427754583,-594.57,0.00034099,35]
[331465155,1720427754636,-594.57,0.00034099,36]
[331465156,1720427754690,-967.69,0.00034099,44]
[331465157,1720427754747,-727.03,0.00034099,44]
[331465158,1720427754807,-967.69,0.00034099,45]
[331465159,1720427754862,-594.57,0.00034099,37]
[331465160,1720427754920,-727.03,0.00034099,45]
[331465161,1720427754975,-967.69,0.00034099,46]
[331465162,1720427755027,-727.03,0.00034099,46]
[331465163,1720427755082,-594.57,0.00034099,38]
[331465164,1720427755134,-967.69,0.00034099,47]
[331465165,1720427755186,-727.03,0.00034099,47]
[331465166,1720427755239,-594.57,0.00034099,39]
[331465167,1720427755289,-967.69,0.00034099,48]
[331465168,1720427755343,-594.57,0.00034099,40]
[331465169,1720427755394,-727.03,0.00034099,48]
[331465170,1720427755445,-967.69,0.00034099,49]
[331465171,1720427755497,-594.57,0.00034099,41]
[331465172,1720427755552,-727.03,0.00034099,49]
[331465173,1720427755601,-967.69,0.00034099,50]
[331465174,1720427755652,-594.57,0.00034099,42]
[331465175,1720427755706,-727.03,0.00034099,50]
[331465176,1720427755756,-967.69,0.00034099,51]
[331465177,1720427755807,-594.57,0.00034099,43]
[331465178,1720427755858,-727.03,0.00034099,51]
[331465179,1720427755916,-967.69,0.00034099,52]
[331465180,1720427755966,-594.57,0.00034099,44]
[331465181,1720427756016,-967.77346177,0.00034099,53]
[331465182,1720427756069,-594.57,0.00034099,45]
[331465183,1720427756120,-727.03,0.00034099,52]
[331465184,1720427756171,-594.57,0.00034099,46]
[331465185,1720427756221,-727.09679763,0.00034099,53]
[331465186,1720427756270,-594.57,0.00034099,47]
[331465187,1720427756319,-708.45,0.00034099,30]
[331465188,1720427756369,-594.57,0.00034099,48]
[331465189,1720427756420,-708.45,0.00034099,31]
[331465190,1720427756470,-594.57,0.00034099,49]
[331465191,1720427756519,-708.45,0.00034099,32]
[331465192,1720427756570,-594.57,0.00034099,50]
[331465193,1720427756621,-708.45,0.00034099,33]
[331465194,1720427756670,-594.57,0.00034099,51]
[331465195,1720427756720,-708.45,0.00034099,34]
[331465196,1720427756772,-594.57,0.00034099,52]
[331465197,1720427756822,-594.64,0.00034099,53]
[331465198,1720427756874,-708.45,0.00034099,35]
[331465199,1720427757237,-708.45,0.00034099,36]
[331465200,1720427757290,-708.45,0.00034099,37]
[331465201,1720427757346,-708.45,0.00034099,38]
[331465202,1720427757396,-663.11,0.00034099,30]
[331465203,1720427757444,-663.11,0.00034099,31]
[331465204,1720427757493,-708.45,0.00034099,39]
[331465205,1720427757540,-663.11,0.00034099,32]
[331465206,1720427757591,-708.45,0.00034099,40]
[331465207,1720427757639,-828.76,0.00034099,30]
[331465208,1720427757687,-663.11,0.00034099,33]
[331465209,1720427757733,-708.45,0.00034099,41]
[331465210,1720427757780,-663.11,0.00034099,34]
[331465211,1720427757828,-708.45,0.00034099,42]
[331465212,1720427757877,-663.11,0.00034099,35]
[331465213,1720427757929,-708.45,0.00034099,43]
[331465214,1720427757979,-828.76,0.00034099,31]
[331465215,1720427758030,-663.11,0.00034099,36]
[331465216,1720427758082,-708.45,0.00034099,44]
[331465217,1720427758132,-663.11,0.00034099,37]
[331465218,1720427758181,-708.45,0.00034099,45]
[331465219,1720427758230,-828.76,0.00034099,32]
[331465220,1720427758279,-663.11,0.00034099,38]
[331465221,1720427758332,-708.45,0.00034099,46]
[331465222,1720427758383,-828.76,0.00034099,33]
[331465223,1720427758431,-708.45,0.00034099,47]
[331465224,1720427758480,-663.11,0.00034099,39]
[331465225,1720427758527,-663.11,0.00034099,40]
[331465226,1720427758575,-828.76,0.00034099,34]
[331465227,1720427758625,-708.45,0.00034099,48]
[331465228,1720427758668,-663.11,0.00034099,41]
[331465229,1720427758715,-828.76,0.00034099,35]
[331465230,1720427758762,-708.45,0.00034099,49]
[331465231,1720427758809,-663.11,0.00034099,42]
[331465232,1720427758858,-828.76,0.00034099,36]
[331465233,1720427758911,-708.45,0.00034099,50]
[331465234,1720427758964,-663.11,0.00034099,43]
[331465235,1720427759012,-828.76,0.00034099,37]
[331465236,1720427759060,-708.45,0.00034099,51]
[331465237,1720427759109,-663.11,0.00034099,44]
[331465238,1720427759157,-828.76,0.00034099,38]
[331465239,1720427759206,-708.45,0.00034099,52]
[331465240,1720427759254,-663.11,0.00034099,45]
[331465241,1720427759304,-708.49588416,0.00034099,53]
[331465242,1720427759353,-663.11,0.00034099,46]
[331465243,1720427759400,-828.76,0.00034099,39]
[331465244,1720427759448,-663.11,0.00034099,47]
[331465245,1720427759496,-828.76,0.00034099,40]
[331465246,1720427759543,-663.11,0.00034099,48]
[331465247,1720427759594,-500.0,0.00034099,30]
[331465248,1720427759643,-828.76,0.00034099,41]
[331465249,1720427759691,-500.0,0.00034099,31]
[331465250,1720427759740,-828.76,0.00034099,42]
[331465251,1720427759789,-508.02696348,0.00034099,32]
[331465252,1720427759846,-663.11,0.00034099,49]
[331465253,1720427759897,-500.0,0.00034099,30]
[331465254,1720427759946,-828.76,0.00034099,43]
[331465255,1720427759997,-500.0,0.00034099,31]
[331465256,1720427760048,-663.11,0.00034099,50]
[331465257,1720427760102,-828.76,0.00034099,44]
[331465258,1720427760150,-663.11,0.00034099,51]
[331465259,1720427760208,-828.76,0.00034099,45]
[331465260,1720427760260,-663.11,0.00034099,52]
[331465261,1720427760312,-500.0,0.00034099,32]
[331465262,1720427760362,-828.76,0.00034099,46]
[331465263,1720427760411,-504.38796825,0.00034099,30]
[331465264,1720427760460,-663.15060864,0.00034099,53]
[331465265,1720427760509,-828.76,0.00034099,47]
[331465266,1720427760556,-500.0,0.00034099,33]
[331465267,1720427760608,-828.76,0.00034099,48]
[331465268,1720427760657,-500.0,0.00034099,34]
[331465269,1720427760704,-828.76,0.00034099,49]
[331465270,1720427760751,-500.0,0.00034099,35]
[331465271,1720427760858,-828.76,0.00034099,50]
[331465272,1720427760905,-500.0,0.00034099,36]
[331465273,1720427760956,-828.76,0.00034099,51]
[331465274,1720427761007,-500.0,0.00034099,37]
[331465275,1720427761060,-828.76,0.00034099,52]
[331465276,1720427761112,-500.0,0.00034099,38]
[331465277,1720427761162,-828.88,0.00034099,53]
[331465278,1720427761209,-500.0,0.00034099,39]
[331465279,1720427761258,-500.0,0.00034099,30]
[331465280,1720427761311,-500.0,0.00034099,40]
[331465281,1720427761365,-486.98726672,0.00034099,31]
[331465282,1720427761415,-500.0,0.00034099,41]
[331465283,1720427761466,-500.0,0.00034099,42]
[331465284,1720427761518,-500.0,0.00034099,43]
[331465285,1720427761571,-500.0,0.00034099,30]
[331465286,1720427761624,-500.0,0.00034099,44]
[331465287,1720427761675,-500.0,0.00034099,31]
[331465288,1720427761721,-500.0,0.00034099,45]
[331465289,1720427761770,-500.0,0.00034099,32]
[331465290,1720427761819,-500.0,0.00034099,46]
[331465291,1720427761870,-500.0,0.00034099,33]
[331465292,1720427761920,-503.77687745,0.00034099,30]
[331465293,1720427761970,-500.0,0.00034099,47]
[331465294,1720427762017,-500.0,0.00034099,34]
[331465295,1720427762066,-500.0,0.00034099,48]
[331465296,1720427762113,-500.0,0.00034099,35]
[331465297,1720427762161,-500.0,0.00034099,30]
[331465298,1720427762208,-500.0,0.00034099,49]
[331465299,1720427762255,-500.0,0.00034099,36]
[331465300,1720427762305,-500.0,0.00034099,31]
[331465301,1720427762352,-500.0,0.00034099,50]
[331465302,1720427762398,-500.0,0.00034099,37]
[331465303,1720427762444,-500.0,0.00034099,51]
[331465304,1720427762488,-500.0,0.00034099,30]
[331465305,1720427762535,-500.0,0.00034099,38]
[331465306,1720427762588,-500.0,0.00034099,52]
[331465307,1720427762636,-500.0,0.00034099,32]
[331465308,1720427762687,-500.0,0.00034099,31]
[331465309,1720427762735,-500.0,0.00034099,39]
[331465310,1720427762783,-421.15120654,0.00034099,53]
[331465311,1720427762837,-500.0,0.00034099,33]
[331465312,1720427762882,-500.0,0.00034099,32]
[331465313,1720427762930,-500.0,0.00034099,40]
[331465314,1720427762977,-500.0,0.00034099,30]
[331465315,1720427763026,-500.0,0.00034099,34]
[331465316,1720427763076,-500.0,0.00034099,41]
[331465317,1720427763126,-500.0,0.00034099,33]
[331465318,1720427763177,-500.0,0.00034099,35]
[331465319,1720427763224,-500.0,0.00034099,34]
[331465320,1720427763268,-500.0,0.00034099,42]
[331465321,1720427763315,-500.0,0.00034099,36]
[331465322,1720427763361,-500.0,0.00034099,35]
[331465323,1720427763408,-500.0,0.00034099,30]
[331465324,1720427763454,-500.0,0.00034099,37]
[331465325,1720427763501,-500.0,0.00034099,43]
[331465326,1720427763549,-500.0,0.00034099,36]
[331465327,1720427763595,-500.0,0.00034099,31]
[331465328,1720427763639,-500.0,0.00034099,44]
[331465329,1720427763685,-500.0,0.00034099,38]
[331465330,1720427763732,-633.990849,0.00034099,37]
[331465331,1720427763780,-500.0,0.00034099,45]
[331465332,1720427763831,-500.0,0.00034099,39]
[331465333,1720427763880,-500.0,0.00034099,40]
[331465334,1720427763935,-500.0,0.00034099,46]
[331465335,1720427763984,-500.0,0.00034099,47]
[331465336,1720427764029,-500.0,0.00034099,41]
[331465337,1720427764079,-554.87659404,0.00034099,48]
[331465338,1720427764127,-500.0,0.00034099,42]
[331465339,1720427764174,-500.0,0.00034099,43]
[331465340,1720427764224,-500.0,0.00034099,44]
[331465341,1720427764275,-500.0,0.00034099,45]
[331465342,1720427764326,-678.58,0.00034099,30]
[331465343,1720427764376,-500.0,0.00034099,30]
[331465344,1720427764427,-500.0,0.00034099,46]
[331465345,1720427764475,-678.58,0.00034099,31]
[331465346,1720427764525,-500.0,0.00034099,31]
[331465347,1720427764574,-500.0,0.00034099,30]
[331465348,1720427764622,-500.0,0.00034099,47]
[331465349,1720427764671,-678.58,0.00034099,32]
[331465350,1720427764722,-500.0,0.00034099,32]
[331465351,1720427764768,-505.52894868,0.00034099,31]
[331465352,1720427764814,-500.0,0.00034099,48]
[331465353,1720427764860,-678.58,0.00034099,33]
[331465354,1720427764914,-500.0,0.00034099,33]
[331465355,1720427764966,-678.58,0.00034099,34]
[331465356,1720427765017,-500.0,0.00034099,34]
[331465357,1720427765067,-360.685678,0.00034099,31]
[331465358,1720427765117,-678.58,0.00034099,35]
[331465359,1720427765168,-500.0,0.00034099,49]
[331465360,1720427765218,-500.0,0.00034099,35]
[331465361,1720427765265,-500.0,0.00034099,50]
[331465362,1720427765313,-500.0,0.00034099,36]
[331465363,1720427765360,-678.58,0.00034099,36]
[331465364,1720427765405,-500.0,0.00034099,37]
[331465365,1720427765450,-385.82228655,0.00034099,51]
[331465366,1720427765496,-500.0,0.00034099,30]
[331465367,1720427765544,-678.58,0.00034099,37]
[331465368,1720427765595,-500.0,0.00034099,38]
[331465369,1720427765639,-500.7235394,0.00034099,31]
[331465370,1720427765684,-678.58,0.00034099,38]
[331465371,1720427765732,-500.0,0.00034099,39]
[331465372,1720427765777,-500.0,0.00034099,30]
[331465373,1720427765826,-678.58,0.00034099,39]
[331465374,1720427765876,-500.0,0.00034099,30]
[331465375,1720427766057,-521.91744913,0.00034099,40]
[331465376,1720427766106,-500.0,0.00034099,31]
[331465377,1720427766155,-678.58,0.00034099,40]
[331465378,1720427766204,-500.0,0.00034099,32]
[331465379,1720427766255,-678.58,0.00034099,41]
[331465380,1720427766307,-500.0,0.00034099,33]
[331465381,1720427766357,-500.0,0.00034099,34]
[331465382,1720427766408,-678.58,0.00034099,42]
[331465383,1720427766456,-500.0,0.00034099,35]
[331465384,1720427766508,-678.58,0.00034099,43]
[331465385,1720427766560,-500.0,0.00034099,30]
[331465386,1720427766607,-500.0,0.00034099,36]
[331465387,1720427766658,-678.58,0.00034099,44]
[331465388,1720427766709,-500.0,0.00034099,37]
[331465389,1720427766759,-500.0,0.00034099,31]
[331465390,1720427766816,-678.58,0.00034099,45]
[331465391,1720427766864,-500.0,0.00034099,30]
[331465392,1720427766916,-500.0,0.00034099,38]
[331465393,1720427766967,-678.58,0.00034099,46]
[331465394,1720427767016,-500.0,0.00034099,30]
[331465395,1720427767065,-500.0,0.00034099,31]
[331465396,1720427767112,-500.0,0.00034099,39]
[331465397,1720427767160,-678.58,0.00034099,47]
[331465398,1720427767207,-500.0,0.00034099,31]
[331465399,1720427767254,-500.0,0.00034099,32]
[331465400,1720427767312,-500.0,0.00034099,40]
[331465401,1720427767361,-500.0,0.00034099,32]
[331465402,1720427767408,-678.58,0.00034099,48]
[331465403,1720427767456,-500.0,0.00034099,33]
[331465404,1720427767504,-678.58,0.00034099,49]
[331465405,1720427767559,-500.0,0.00034099,33]
[331465406,1720427767609,-500.0,0.00034099,34]
[331465407,1720427767657,-678.58,0.00034099,50]
[331465408,1720427767707,-500.0,0.00034099,34]
[331465409,1720427767758,-500.0,0.00034099,35]
[331465410,1720427767811,-678.58,0.00034099,51]
[331465411,1720427767862,-500.0,0.00034099,36]
[331465412,1720427767918,-678.58,0.00034099,52]
[331465413,1720427767969,-500.0,0.00034099,37]
[331465414,1720427768021,-678.63313924,0.00034099,53]
[331465415,1720427768077,-500.0,0.00034099,38]
[331465416,1720427768132,-500.0,0.00034099,39]
[331465417,1720427768187,-500.0,0.00034099,40]
[331465418,1720427768241,-500.0,0.00034099,41]
[331465419,1720427768290,-500.0,0.00034099,32]
[331465420,1720427768345,-500.0,0.00034099,35]
[331465421,1720427768392,-500.0,0.00034099,42]
[331465422,1720427768439,-500.0,0.00034099,30]
[331465423,1720427768485,-500.0,0.00034099,33]